[Event "2nd FIDE WCC Rapid G10"]
[Site "Minsk"]
[Date "2018.06.23"]
[Round "7"]
[White "Kleymenova, Valeria"]
[Black "Ho, Ngoc Vy"]
[Result "1-0"]
[ECO "D05"]
[WhiteElo "1669"]
[BlackElo "1275"]
[Annotator "NA"]
[PlyCount "121"]
[EventDate "2018.06.22"]
[EventType "rapid"]
[EventCountry "BLR"]
[SourceTitle "playchess.com"]
[Source "ChessBase"]
[SourceQuality "1"]
[TimeControl "600+5"]

1. d4 {[%emt 0:00:00]} d5 {[%emt 0:00:00]} 2. e3 {[%emt 0:00:00]} Nf6 {[%emt 0:00:03]} 3. Bd3 {[%emt 0:00:01]} c6 {[%emt 0:00:02]} 4. f4 {[%emt 0:00:06]} e6 {[%emt 0:00:01]} 5. Nf3 {[%emt 0:00:08]} Nbd7 {[%emt 0:00:02]} 6. O-O {[%emt 0:00:06]} b6 {[%emt 0:00:01]} 7. Ne5 {[%emt 0:00:12]} Bb7 {[%emt 0:00:04]} 8. Nd2 {[%emt 0:00:06]} Bd6 {[%emt 0:00:02]} 9. c3 {[%emt 0:00:11]} O-O {[%emt 0:00:04]} 10. Qe2 {[%emt 0:00:04]} c5 {[%emt 0:00:02]} 11. Ndf3 {[%emt 0:00:06]} h6 {[%emt 0:00:20]} 12. Bd2 {[%emt 0:00:04]} a5 {[%emt 0:00:16]} 13. Be1 {[%emt 0:00:03]} Ne4 {[%emt 0:00:03]} 14. Bh4 {[%emt 0:00:10]} Be7 {[%emt 0:00:08]} 15. Bxe7 {[%emt 0:00:08]} Qxe7 {[%emt 0:00:02]} 16. Rac1 {[%emt 0:00:54]} Nd6 {[%emt 0:01:50]} 17. Nxd7 {[%emt 0:02:25]} Qxd7 {[%emt 0:00:04]} 18. Ne5 {[%emt 0:00:04]} Qe7 {[%emt 0:00:07]} 19. Rf3 {[%emt 0:01:07]} c4 {[%emt 0:00:15]} 20. Bb1 {[%emt 0:00:12]} b5 {[%emt 0:00:05]} 21. Qc2 {[%emt 0:00:23]} Ne4 {[%emt 0:00:28]} 22. f5 {[%emt 0:00:52]} exf5 {[%emt 0:00:22]} 23. Rxf5 {[%emt 0:00:05]} b4 {[%emt 0:00:27]} 24. Rcf1 {[%emt 0:00:31]} Nd6 {[%emt 0:01:48]} 25. Rxf7 {[%emt 0:00:29]} Ne4 {[%emt 0:02:31]} 26. Rxe7 {[%emt 0:00:05]} Rxf1+ {[%emt 0:00:03]} 27. Kxf1 {[%emt 0:00:01]} Rf8+ {[%emt 0:00:02]} 28. Kg1 {[%emt 0:00:04]} b3 {[%emt 0:00:02]} 29. axb3 {[%emt 0:00:17]} cxb3 {[%emt 0:00:02]} 30. Qxb3 {[%emt 0:00:35]} Nd2 {[%emt 0:00:06]} 31. Qd1 {[%emt 0:00:03]} Ba6 {[%emt 0:00:06]} 32. h3 {[%emt 0:00:12]} Rf1+ {[%emt 0:00:27]} 33. Qxf1 {[%emt 0:00:00]} Nxf1 {[%emt 0:00:24]} 34. Bd3 {[%emt 0:00:08]} Bxd3 {[%emt 0:00:08]} 35. Nxd3 {[%emt 0:00:02]} Nd2 {[%emt 0:00:01]} 36. b4 {[%emt 0:00:16]} axb4 {[%emt 0:00:04]} 37. cxb4 {[%emt 0:00:01]} Nc4 {[%emt 0:00:06]} 38. b5 {[%emt 0:00:02]} Kf8 {[%emt 0:00:05]} 39. Rb7 {[%emt 0:00:12]} Nd6 {[%emt 0:00:04]} 40. Rb8+ {[%emt 0:00:13]} Ke7 {[%emt 0:00:01]} 41. b6 {[%emt 0:00:01]} g5 {[%emt 0:00:08]} 42. b7 {[%emt 0:00:05]} Nxb7 {[%emt 0:00:18]} 43. Rxb7+ {[%emt 0:00:01]} Ke6 {[%emt 0:00:01]} 44. Rb6+ {[%emt 0:00:03]} Kf5 {[%emt 0:00:03]} 45. Rxh6 {[%emt 0:00:05]} Ke4 {[%emt 0:00:00]} 46. Rd6 {[%emt 0:00:19]} Kxd3 {[%emt 0:00:04]} 47. Rxd5 {[%emt 0:00:02]} Kxe3 {[%emt 0:00:02]} 48. Rxg5 {[%emt 0:00:01]} Kxd4 {[%emt 0:00:01]} 49. h4 {[%emt 0:00:06]} Ke4 {[%emt 0:00:01]} 50. h5 {[%emt 0:00:01]} Kf4 {[%emt 0:00:01]} 51. Rg8 {[%emt 0:00:03]} Kf5 {[%emt 0:00:01]} 52. h6 {[%emt 0:00:01]} Kf6 53. h7 {[%emt 0:00:01]} Kf5 {[%emt 0:00:02]} 54. h8=Q {[%emt 0:00:03]} Kf4 {[%emt 0:00:03]} 55. Qf6+ {[%emt 0:00:03]} Ke4 {[%emt 0:00:01]} 56. Re8+ {[%emt 0:00:01]} Kd5 {[%emt 0:00:01]} 57. Qd8+ {[%emt 0:00:02]} Kc6 {[%emt 0:00:03]} 58. Re7 {[%emt 0:00:04]} Kc5 {[%emt 0:00:01]} 59. Rc7+ {[%emt 0:00:01]} Kb6 {[%emt 0:00:02]} 60. Qb8+ {[%emt 0:00:01]} Ka6 {[%emt 0:00:01]} 61. Ra7# 1-0

[Event "2nd FIDE WCC Rapid G10"]
[Site "Minsk"]
[Date "2018.06.23"]
[Round "7"]
[White "Zhapova, Yana"]
[Black "Novikova, Daria"]
[Result "1-0"]
[ECO "B42"]
[WhiteElo "1597"]
[BlackElo "1341"]
[Annotator "NA"]
[PlyCount "100"]
[EventDate "2018.06.22"]
[EventType "rapid"]
[EventCountry "BLR"]
[SourceTitle "playchess.com"]
[Source "ChessBase"]
[SourceQuality "1"]
[TimeControl "600+5"]

1. e4 {[%emt 0:00:00]} c5 {[%emt 0:00:02]} 2. Nf3 {[%emt 0:00:01]} e6 {[%emt 0:00:03]} 3. d4 {[%emt 0:00:02]} cxd4 {[%emt 0:00:02]} 4. Nxd4 {[%emt 0:00:02]} a6 {[%emt 0:00:02]} 5. Bd3 {[%emt 0:00:01]} Bc5 {[%emt 0:00:02]} 6. Nb3 {[%emt 0:00:02]} Ba7 {[%emt 0:00:02]} 7. O-O {[%emt 0:00:07]} Nc6 {[%emt 0:00:04]} 8. Re1 {[%emt 0:00:48]} Qc7 {[%emt 0:00:15]} 9. Be3 {[%emt 0:00:21]} b5 {[%emt 0:00:26]} 10. Bxa7 {[%emt 0:00:53]} Rxa7 {[%emt 0:00:14]} 11. c4 {[%emt 0:01:16]} b4 {[%emt 0:01:09]} 12. N1d2 {[%emt 0:00:19]} Nge7 {[%emt 0:00:08]} 13. Rc1 {[%emt 0:00:54]} O-O {[%emt 0:00:40]} 14. Nf1 {[%emt 0:00:32]} a5 {[%emt 0:00:26]} 15. Ne3 {[%emt 0:00:20]} Bb7 {[%emt 0:00:34]} 16. Bb1 {[%emt 0:00:35]} Ba6 {[%emt 0:01:25]} 17. Nd4 {[%emt 0:00:45]} Rb7 {[%emt 0:01:25]} 18. b3 {[%emt 0:00:27]} Rc8 {[%emt 0:01:27]} 19. Ne2 {[%emt 0:00:37]} Ng6 {[%emt 0:00:24]} 20. Nd4 {[%emt 0:00:21]} Nge7 {[%emt 0:00:03]} 21. Kh1 {[%emt 0:00:07]} Kh8 {[%emt 0:00:10]} 22. Nxc6 {[%emt 0:00:45]} Nxc6 {[%emt 0:00:05]} 23. Qh5 {[%emt 0:00:05]} Ne5 {[%emt 0:01:24]} 24. f4 {[%emt 0:00:59]} Ng6 {[%emt 0:00:17]} 25. f5 {[%emt 0:00:21]} Qe5 {[%emt 0:00:07]} 26. Ng4 {[%emt 0:00:23]} Qc5 {[%emt 0:00:06]} 27. Qh3 {[%emt 0:00:13]} Kg8 {[%emt 0:00:13]} 28. fxg6 {[%emt 0:00:02]} fxg6 {[%emt 0:00:05]} 29. Qe3 {[%emt 0:00:04]} Qxe3 {[%emt 0:00:10]} 30. Nxe3 {[%emt 0:00:07]} Rbc7 {[%emt 0:00:08]} 31. Rcd1 {[%emt 0:00:01]} a4 {[%emt 0:00:09]} 32. Rd6 {[%emt 0:00:02]} Ra8 {[%emt 0:00:15]} 33. Red1 {[%emt 0:00:05]} Raa7 {[%emt 0:00:03]} 34. Ng4 {[%emt 0:00:05]} axb3 {[%emt 0:00:06]} 35. axb3 {[%emt 0:00:00]} Bc8 {[%emt 0:00:06]} 36. Rb6 {[%emt 0:00:07]} Rcb7 {[%emt 0:00:12]} 37. Rxb7 {[%emt 0:00:01]} Rxb7 38. Kg1 {[%emt 0:00:03]} Rb6 {[%emt 0:00:11]} 39. Kf2 {[%emt 0:00:12]} h5 {[%emt 0:00:10]} 40. Ne5 {[%emt 0:00:03]} d6 {[%emt 0:00:02]} 41. Nxg6 {[%emt 0:00:05]} Kf7 {[%emt 0:00:12]} 42. Nf4 {[%emt 0:00:04]} e5 {[%emt 0:00:08]} 43. Nd5 {[%emt 0:00:04]} Ra6 {[%emt 0:00:04]} 44. Rd2 {[%emt 0:00:19]} Ra3 {[%emt 0:00:06]} 45. Bc2 {[%emt 0:00:02]} Ra2 {[%emt 0:00:11]} 46. Ke3 {[%emt 0:00:07]} Be6 {[%emt 0:00:16]} 47. Nxb4 {[%emt 0:00:03]} Rb2 {[%emt 0:00:01]} 48. Nd5 {[%emt 0:00:18]} Bxd5 49. exd5 Kf6 50. Bd1 Rb1 {[%emt 0:00:00]} 1-0

[Event "2nd FIDE WCC Rapid G10"]
[Site "Minsk"]
[Date "2018.06.23"]
[Round "7"]
[White "Szczotka, Klara"]
[Black "Loviagina, Dariana"]
[Result "1-0"]
[ECO "B28"]
[WhiteElo "1465"]
[BlackElo "1207"]
[Annotator "NA"]
[PlyCount "97"]
[EventDate "2018.06.22"]
[EventType "rapid"]
[EventCountry "BLR"]
[SourceTitle "playchess.com"]
[Source "ChessBase"]
[SourceQuality "1"]
[TimeControl "600+5"]

1. e4 {[%emt 0:00:00]} c5 {[%emt 0:00:01]} 2. Nf3 {[%emt 0:00:00]} a6 {[%emt 0:00:02]} 3. c3 {[%emt 0:00:00]} d5 {[%emt 0:00:02]} 4. exd5 {[%emt 0:00:26]} Qxd5 {[%emt 0:00:02]} 5. d4 {[%emt 0:00:01]} e6 {[%emt 0:00:13]} 6. Be3 {[%emt 0:00:07]} cxd4 {[%emt 0:00:03]} 7. Nxd4 {[%emt 0:00:18]} e5 {[%emt 0:00:05]} 8. Nf3 {[%emt 0:00:04]} Qxd1+ {[%emt 0:00:04]} 9. Kxd1 {[%emt 0:00:01]} Nc6 {[%emt 0:00:11]} 10. Nbd2 {[%emt 0:00:03]} Bf5 {[%emt 0:00:12]} 11. Bc4 {[%emt 0:00:23]} Nf6 {[%emt 0:00:09]} 12. Ke2 {[%emt 0:00:07]} Bg4 {[%emt 0:00:17]} 13. h3 {[%emt 0:00:23]} Bxf3+ {[%emt 0:00:26]} 14. Nxf3 {[%emt 0:00:02]} Bd6 {[%emt 0:00:21]} 15. Rad1 {[%emt 0:00:13]} Rd8 {[%emt 0:00:06]} 16. Rd2 {[%emt 0:00:33]} h6 {[%emt 0:01:18]} 17. Rhd1 {[%emt 0:00:09]} Ke7 {[%emt 0:00:05]} 18. Nh4 {[%emt 0:01:36]} g6 {[%emt 0:00:42]} 19. Bxf7 {[%emt 0:01:11]} Ne4 {[%emt 0:00:21]} 20. Nxg6+ {[%emt 0:00:09]} Kxf7 {[%emt 0:00:03]} 21. Nxh8+ {[%emt 0:00:02]} Rxh8 {[%emt 0:00:05]} 22. Rxd6 {[%emt 0:00:14]} Nxd6 {[%emt 0:00:04]} 23. Rxd6 {[%emt 0:00:02]} Rg8 {[%emt 0:00:42]} 24. g3 {[%emt 0:00:01]} Rg6 {[%emt 0:00:26]} 25. Rd7+ {[%emt 0:00:13]} Ke6 {[%emt 0:00:10]} 26. Rxb7 {[%emt 0:00:06]} Kd5 {[%emt 0:00:44]} 27. Rh7 {[%emt 0:00:23]} a5 {[%emt 0:00:41]} 28. Rxh6 {[%emt 0:00:02]} Rg8 {[%emt 0:00:06]} 29. g4 {[%emt 0:00:16]} Rb8 {[%emt 0:00:09]} 30. b3 {[%emt 0:00:16]} e4 {[%emt 0:00:16]} 31. Rh5+ {[%emt 0:00:05]} Kd6 {[%emt 0:00:06]} 32. Bf4+ {[%emt 0:00:01]} Ke6 {[%emt 0:00:04]} 33. Bxb8 {[%emt 0:00:02]} Nxb8 {[%emt 0:00:03]} 34. Rxa5 {[%emt 0:00:01]} Nc6 {[%emt 0:00:03]} 35. Ra6 {[%emt 0:00:01]} Kd5 {[%emt 0:00:02]} 36. Rxc6 {[%emt 0:00:01]} Kxc6 {[%emt 0:00:02]} 37. g5 {[%emt 0:00:01]} Kd5 {[%emt 0:00:06]} 38. g6 {[%emt 0:00:01]} Ke5 {[%emt 0:00:03]} 39. g7 {[%emt 0:00:02]} Kf4 {[%emt 0:00:02]} 40. g8=Q {[%emt 0:00:05]} Kf5 {[%emt 0:00:06]} 41. Qd5+ {[%emt 0:00:02]} Kf6 {[%emt 0:00:03]} 42. Ke3 {[%emt 0:00:04]} Kg7 {[%emt 0:00:04]} 43. Qe6 {[%emt 0:00:02]} Kh7 {[%emt 0:00:03]} 44. Qf6 {[%emt 0:00:08]} Kg8 {[%emt 0:00:02]} 45. Kxe4 {[%emt 0:00:04]} Kh7 {[%emt 0:00:02]} 46. Qg5 {[%emt 0:00:01]} Kh8 {[%emt 0:00:02]} 47. Kf5 {[%emt 0:00:01]} Kh7 {[%emt 0:00:02]} 48. Kf6 {[%emt 0:00:01]} Kh8 {[%emt 0:00:01]} 49. Qg7# {[%emt 0:00:01]} 1-0

[Event "2nd FIDE WCC Rapid G10"]
[Site "Minsk"]
[Date "2018.06.23"]
[Round "7"]
[White "Nguyen, Binh Vy"]
[Black "Marchenko, Yelyzaveta"]
[Result "1-0"]
[ECO "C00"]
[WhiteElo "1216"]
[BlackElo "1510"]
[Annotator "NA"]
[PlyCount "136"]
[EventDate "2018.06.22"]
[EventType "rapid"]
[EventCountry "BLR"]
[SourceTitle "playchess.com"]
[Source "ChessBase"]
[SourceQuality "1"]
[TimeControl "600+5"]

1. e4 {[%emt 0:00:00]} e6 {[%emt 0:00:03]} 2. d4 {[%emt 0:00:00]} b6 {[%emt 0:00:01]} 3. Nc3 {[%emt 0:00:00]} Bb7 {[%emt 0:00:01]} 4. f3 {[%emt 0:00:04]} Bb4 {[%emt 0:00:07]} 5. Nge2 {[%emt 0:00:06]} Nf6 {[%emt 0:00:07]} 6. Be3 {[%emt 0:00:03]} d6 {[%emt 0:00:19]} 7. a3 {[%emt 0:00:04]} Bxc3+ 8. Nxc3 {[%emt 0:00:01]} Nbd7 {[%emt 0:00:11]} 9. Qd2 {[%emt 0:00:02]} Qe7 {[%emt 0:00:55]} 10. Be2 {[%emt 0:00:03]} a5 {[%emt 0:00:38]} 11. Nb5 {[%emt 0:00:03]} Qd8 {[%emt 0:00:49]} 12. g4 {[%emt 0:00:11]} h6 {[%emt 0:00:27]} 13. Qc3 {[%emt 0:00:59]} Rc8 {[%emt 0:00:53]} 14. h4 {[%emt 0:01:29]} Ba6 {[%emt 0:00:11]} 15. Qd2 {[%emt 0:00:17]} Bxb5 {[%emt 0:00:45]} 16. Bxb5 {[%emt 0:00:02]} c6 {[%emt 0:00:00]} 17. Ba6 {[%emt 0:00:11]} Rc7 {[%emt 0:00:13]} 18. Be2 {[%emt 0:00:04]} Rc8 {[%emt 0:00:08]} 19. O-O-O {[%emt 0:00:12]} b5 {[%emt 0:00:45]} 20. g5 {[%emt 0:00:07]} Nh5 {[%emt 0:00:20]} 21. gxh6 {[%emt 0:00:02]} gxh6 {[%emt 0:00:03]} 22. Rdg1 {[%emt 0:00:15]} Qf6 {[%emt 0:01:11]} 23. Qxa5 {[%emt 0:00:37]} Nf4 {[%emt 0:00:46]} 24. Bxf4 {[%emt 0:00:14]} Qxf4+ {[%emt 0:00:02]} 25. Qd2 {[%emt 0:00:03]} Qf6 {[%emt 0:00:27]} 26. Rg4 {[%emt 0:00:05]} Ke7 {[%emt 0:00:10]} 27. Rhg1 {[%emt 0:00:09]} e5 {[%emt 0:00:22]} 28. d5 {[%emt 0:00:24]} cxd5 {[%emt 0:00:34]} 29. exd5 {[%emt 0:00:32]} Rb8 {[%emt 0:00:21]} 30. Qe3 {[%emt 0:00:15]} Rhc8 {[%emt 0:00:22]} 31. f4 {[%emt 0:00:02]} Qf5 {[%emt 0:00:10]} 32. Bd3 {[%emt 0:00:07]} Qf6 {[%emt 0:00:15]} 33. Rf1 {[%emt 0:00:21]} Nc5 {[%emt 0:00:15]} 34. fxe5 {[%emt 0:00:43]} Qxe5 {[%emt 0:00:25]} 35. Qxe5+ {[%emt 0:00:20]} dxe5 {[%emt 0:00:01]} 36. Kd2 {[%emt 0:00:03]} Nxd3 {[%emt 0:00:15]} 37. Kxd3 {[%emt 0:00:13]} Rc5 {[%emt 0:00:11]} 38. Rg7 {[%emt 0:00:12]} Rf8 {[%emt 0:00:08]} 39. d6+ {[%emt 0:00:03]} Kxd6 {[%emt 0:00:04]} 40. Rfxf7 {[%emt 0:00:06]} Rxf7 {[%emt 0:00:02]} 41. Rxf7 {[%emt 0:00:01]} Kd5 {[%emt 0:00:16]} 42. Rf6 {[%emt 0:00:16]} e4+ {[%emt 0:00:03]} 43. Kd2 {[%emt 0:00:01]} Kd4 {[%emt 0:00:06]} 44. c3+ {[%emt 0:00:06]} Ke5 {[%emt 0:00:03]} 45. Rxh6 {[%emt 0:00:02]} Kf4 {[%emt 0:00:03]} 46. Rf6+ {[%emt 0:00:10]} Kg4 {[%emt 0:00:01]} 47. Re6 {[%emt 0:00:04]} Kxh4 {[%emt 0:00:04]} 48. Rxe4+ {[%emt 0:00:02]} Kg5 {[%emt 0:00:01]} 49. Re2 {[%emt 0:00:03]} Kf5 {[%emt 0:00:02]} 50. Kc2 {[%emt 0:00:01]} Rc8 {[%emt 0:00:02]} 51. Kb3 {[%emt 0:00:01]} Rc5 {[%emt 0:00:03]} 52. Kb4 {[%emt 0:00:01]} Rd5 {[%emt 0:00:02]} 53. Re8 {[%emt 0:00:04]} Kf6 {[%emt 0:00:03]} 54. Rb8 {[%emt 0:00:01]} Ke6 {[%emt 0:00:01]} 55. Rxb5 {[%emt 0:00:01]} Rd6 {[%emt 0:00:01]} 56. Kc5 {[%emt 0:00:02]} Rd5+ {[%emt 0:00:02]} 57. Kc4 {[%emt 0:00:01]} Rd6 {[%emt 0:00:01]} 58. b4 Kd7 {[%emt 0:00:01]} 59. a4 {[%emt 0:00:01]} Kc7 {[%emt 0:00:02]} 60. a5 {[%emt 0:00:01]} Rc6+ {[%emt 0:00:02]} 61. Rc5 {[%emt 0:00:01]} Kb7 {[%emt 0:00:02]} 62. Rxc6 {[%emt 0:00:01]} Kxc6 {[%emt 0:00:00]} 63. b5+ {[%emt 0:00:01]} Kb7 {[%emt 0:00:01]} 64. Kc5 {[%emt 0:00:01]} Kc7 {[%emt 0:00:01]} 65. a6 {[%emt 0:00:01]} Kb8 {[%emt 0:00:01]} 66. b6 {[%emt 0:00:00]} Ka8 {[%emt 0:00:02]} 67. Kb5 {[%emt 0:00:01]} Kb8 {[%emt 0:00:00]} 68. c4 {[%emt 0:00:03]} Ka8 {[%emt 0:00:01]} 1-0

[Event "2nd FIDE WCC Rapid G10"]
[Site "Minsk"]
[Date "2018.06.23"]
[Round "8"]
[White "Shvedova, Alexandra"]
[Black "Edithso, Samantha"]
[Result "0-1"]
[ECO "B90"]
[WhiteElo "1758"]
[BlackElo "1714"]
[Annotator "NA RC"]
[PlyCount "174"]
[EventDate "2018.06.22"]
[EventType "rapid"]
[EventCountry "BLR"]
[SourceTitle "playchess.com"]
[Source "ChessBase"]
[SourceQuality "1"]
[TimeControl "600+5"]

1. e4 {[%emt 0:00:00]} c5 {[%emt 0:00:01]} 2. Ne2 {[%emt 0:00:00]} d6 {[%emt 0:00:02]} 3. d4 {[%emt 0:00:00]} cxd4 {[%emt 0:00:02]} 4. Nxd4 {[%emt 0:00:00]} Nf6 {[%emt 0:00:02]} 5. Nc3 {[%emt 0:00:00]} a6 {[%emt 0:00:02]} 6. Be3 {[%emt 0:00:01]} e5 {[%emt 0:00:05]} 7. Nf3 {[%emt 0:00:01]} Be7 {[%emt 0:00:02]} 8. Bc4 {[%emt 0:00:01]} O-O {[%emt 0:00:04]} 9. O-O {[%emt 0:00:02]} Qc7 {[%emt 0:00:08]} 10. Bb3 {[%emt 0:00:09]} h6 {[%emt 0:00:05]} 11. Qd2 {[%emt 0:00:23]} b5 {[%emt 0:00:23]} 12. Nd5 {[%emt 0:00:08]} Nxd5 {[%emt 0:00:10]} 13. Bxd5 {[%emt 0:00:05]} Bb7 {[%emt 0:00:18]} 14. Rac1 {[%emt 0:00:30]} Bxd5 {[%emt 0:00:21]} 15. Qxd5 {[%emt 0:00:05]} Nd7 {[%emt 0:00:16]} 16. c4 {[%emt 0:00:29]} Nf6 {[%emt 0:00:09]} 17. Qd3 {[%emt 0:00:05]} Qb7 {[%emt 0:00:07]} 18. Nd2 {[%emt 0:00:09]} bxc4 {[%emt 0:00:03]} 19. Qxc4 {[%emt 0:01:14]} Qxb2 20. Rb1 Qa3 {[%emt 0:01:56]} 21. Qc7 {[%emt 0:01:33]} d5 {[%emt 0:01:30]} 22. Qxe5 {[%emt 0:00:47]} Ng4 {[%emt 0:00:48]} 23. Qb2 {[%emt 0:00:54]} Qxb2 {[%emt 0:00:02]} 24. Rxb2 {[%emt 0:00:01]} Bf6 {[%emt 0:00:02]} 25. Rb3 {[%emt 0:00:16]} Nxe3 {[%emt 0:01:09]} 26. Rxe3 {[%emt 0:00:01]} d4 {[%emt 0:00:10]} 27. Rd3 {[%emt 0:00:06]} Rac8 {[%emt 0:00:05]} 28. Nf3 {[%emt 0:00:29]} Rc3 {[%emt 0:00:40]} 29. Rd2 {[%emt 0:00:10]} d3 {[%emt 0:00:30]} 30. Rfd1 {[%emt 0:00:06]} Rd8 {[%emt 0:00:06]} 31. Ne1 {[%emt 0:00:26]} Ra3 {[%emt 0:00:48]} 32. Nxd3 {[%emt 0:00:30]} Kh7 {[%emt 0:00:21]} 33. e5 {[%emt 0:00:10]} Bg5 {[%emt 0:00:06]} 34. f4 {[%emt 0:00:01]} Be7 {[%emt 0:00:03]} 35. Nc1 {[%emt 0:00:08]} Bc5+ {[%emt 0:00:06]} 36. Kf1 {[%emt 0:00:07]} Rxd2 {[%emt 0:00:04]} 37. Rxd2 {[%emt 0:00:05]} Be3 {[%emt 0:00:01]} 38. Rd3 {[%emt 0:00:01]} Bxc1 {[%emt 0:00:01]} 39. Rxa3 {[%emt 0:00:02]} Bxa3 {[%emt 0:00:01]} 40. Ke2 {[%emt 0:00:02]} Bc1 {[%emt 0:00:04]} 41. g3 {[%emt 0:00:01]} Kg6 {[%emt 0:00:01]} 42. Kd3 {[%emt 0:00:09]} Kf5 {[%emt 0:00:02]} 43. Kc4 {[%emt 0:00:01]} a5 {[%emt 0:00:02]} 44. Kb5 {[%emt 0:00:01]} Bd2 {[%emt 0:00:01]} 45. a4 {[%emt 0:00:12]} f6 {[%emt 0:00:04]} 46. exf6 {[%emt 0:00:03]} Kxf6 {[%emt 0:00:02]} 47. Kc4 {[%emt 0:00:09]} Kf5 {[%emt 0:00:02]} 48. Kd3 {[%emt 0:00:01]} Bb4 {[%emt 0:00:02]} 49. Ke3 {[%emt 0:00:23]} Kg4 {[%emt 0:00:02]} 50. Kf2 {[%emt 0:00:13]} Kf5 {[%emt 0:00:07]} 51. Ke3 {[%emt 0:00:03]} Bc5+ {[%emt 0:00:03]} 52. Kf3 {[%emt 0:00:04]} h5 {[%emt 0:00:04]} 53. h3 {[%emt 0:00:02]} Ke6 {[%emt 0:00:14]} 54. Ke4 {[%emt 0:00:04]} Bf2 {[%emt 0:00:02]} 55. g4 {[%emt 0:00:01]} h4 {[%emt 0:00:06]} 56. Kd3 {[%emt 0:00:41]} Kd5 {[%emt 0:00:03]} 57. f5 {[%emt 0:00:18]} Bg3 {[%emt 0:00:05]} 58. Ke3 {[%emt 0:00:13]} Kc4 {[%emt 0:00:01]} 59. g5 {[%emt 0:00:03]} Kd5 {[%emt 0:00:29]} 60. Kf3 {[%emt 0:00:09]} Ke5 {[%emt 0:00:04]} 61. Kg4 {[%emt 0:00:01]} Be1 {[%emt 0:00:07]} 62. g6 {[%emt 0:00:13]} Kf6 {[%emt 0:00:06]} 63. Kh5 {[%emt 0:00:08]} Bg3 {[%emt 0:00:10]} 64. Kg4 {[%emt 0:00:00]} Be5 {[%emt 0:00:11]} 65. Kh5 {[%emt 0:00:02]} Kxf5 {[%emt 0:00:02]} 66. Kxh4 {[%emt 0:00:02]} Kxg6 {[%emt 0:00:01]} 67. Kg4 {[%emt 0:00:00]} Bc3 {[%emt 0:00:00]} 68. h4 {[%emt 0:00:04]} Kf7 {[%emt 0:00:00]} 69. h5 {[%emt 0:00:11]} Ke6 {[%emt 0:00:02]} 70. Kf4 {[%emt 0:00:09]} Kd5 {[%emt 0:00:02]} 71. Ke3 {[%emt 0:00:03]} Kc4 {[%emt 0:00:01]} 72. Ke2 {[%emt 0:00:03]} Kb4 {[%emt 0:00:02]} 73. Kd3 {[%emt 0:00:01]} Bf6 {[%emt 0:00:02]} 74. Kc2 {[%emt 0:00:05]} Kxa4 {[%emt 0:00:02]} 75. Kb1 {[%emt 0:00:01]} Kb3 {[%emt 0:00:04]} 76. Kc1 {[%emt 0:00:04]} a4 {[%emt 0:00:01]} 77. Kb1 {[%emt 0:00:01]} a3 {[%emt 0:00:00]} 78. Kc1 {[%emt 0:00:01]} a2 {[%emt 0:00:02]} 79. Kd2 {[%emt 0:00:07]} a1=Q {[%emt 0:00:02]} 80. h6 {[%emt 0:00:01]} gxh6 {[%emt 0:00:04]} 81. Ke3 {[%emt 0:00:01]} Qe5+ {[%emt 0:00:02]} 82. Kf3 {[%emt 0:00:01]} h5 {[%emt 0:00:04]} 83. Kf2 {[%emt 0:00:01]} h4 {[%emt 0:00:01]} 84. Kf3 {[%emt 0:00:01]} h3 {[%emt 0:00:03]} 85. Kf2 {[%emt 0:00:04]} Bh4+ {[%emt 0:00:06]} 86. Kg1 {[%emt 0:00:02]} Qg3+ {[%emt 0:00:04]} 87. Kf1 {[%emt 0:00:03]} Qf2# {[%emt 0:00:02]} 0-1

[Event "2nd FIDE WCC Rapid G10"]
[Site "Minsk"]
[Date "2018.06.23"]
[Round "8"]
[White "Shukhman, Anna"]
[Black "Satanovskaia, Evgeniia"]
[Result "1-0"]
[ECO "C68"]
[WhiteElo "1577"]
[BlackElo "1384"]
[Annotator "NA RC"]
[PlyCount "61"]
[EventDate "2018.06.22"]
[EventType "rapid"]
[EventCountry "BLR"]
[SourceTitle "playchess.com"]
[Source "ChessBase"]
[SourceQuality "1"]
[TimeControl "600+5"]

1. e4 {[%emt 0:00:00]} e5 {[%emt 0:00:06]} 2. Nf3 {[%emt 0:00:00]} Nc6 {[%emt 0:00:01]} 3. Bb5 {[%emt 0:00:02]} a6 {[%emt 0:00:03]} 4. Bxc6 {[%emt 0:00:02]} dxc6 {[%emt 0:00:01]} 5. O-O {[%emt 0:00:02]} Bd6 {[%emt 0:00:01]} 6. d4 {[%emt 0:00:02]} exd4 {[%emt 0:00:05]} 7. Qxd4 {[%emt 0:00:02]} f6 {[%emt 0:00:44]} 8. Nbd2 {[%emt 0:00:31]} Ne7 {[%emt 0:00:12]} 9. Nc4 {[%emt 0:00:02]} O-O {[%emt 0:00:16]} 10. Be3 {[%emt 0:00:13]} Bg4 {[%emt 0:00:26]} 11. e5 {[%emt 0:01:16]} Bxf3 {[%emt 0:03:40]} 12. exd6 {[%emt 0:00:02]} Nf5 {[%emt 0:00:32]} 13. Qf4 {[%emt 0:00:19]} Nxe3 {[%emt 0:00:08]} 14. Nxe3 {[%emt 0:00:05]} Bd5 {[%emt 0:01:17]} 15. dxc7 {[%emt 0:00:08]} Qe7 {[%emt 0:00:34]} 16. Rfe1 {[%emt 0:01:13]} Qf7 {[%emt 0:01:17]} 17. Rad1 {[%emt 0:01:49]} Rac8 {[%emt 0:00:22]} 18. Nxd5 {[%emt 0:00:08]} cxd5 {[%emt 0:00:02]} 19. c3 {[%emt 0:00:29]} Rxc7 {[%emt 0:01:34]} 20. Re2 {[%emt 0:00:31]} Rd7 {[%emt 0:00:05]} 21. Red2 {[%emt 0:00:10]} Rfd8 {[%emt 0:00:01]} 22. Qf5 {[%emt 0:00:10]} g6 {[%emt 0:00:11]} 23. Qf3 {[%emt 0:00:06]} Kg7 {[%emt 0:00:02]} 24. h3 {[%emt 0:00:03]} Qe6 {[%emt 0:00:04]} 25. Rd4 {[%emt 0:00:06]} Qf7 {[%emt 0:00:11]} 26. Qd3 {[%emt 0:00:09]} Qe6 {[%emt 0:00:09]} 27. Qd2 {[%emt 0:00:02]} Qf7 {[%emt 0:00:07]} 28. c4 {[%emt 0:00:06]} Rd6 {[%emt 0:00:03]} 29. cxd5 {[%emt 0:00:04]} Qd7 {[%emt 0:00:02]} 30. Qb4 {[%emt 0:00:18]} Rxd5 {[%emt 0:00:07]} 31. Rxd5 {[%emt 0:00:03]} 1-0